lending/lending_fUSD_20241212
["ID","MTS","AMOUNT","RATE_DAILY","PERIOD"]
[345068897,1733974247006,-643.83,0.00011099,2]
[345068899,1733974247016,-733.44,0.00011099,2]
[345068901,1733974247026,-643.83,0.00011099,2]
[345068902,1733974247035,-733.44,0.00011099,2]
[345068903,1733974247045,-643.83,0.00011099,2]
[345068904,1733974247055,-733.44,0.00011099,2]
[345068905,1733974247066,-643.83,0.00011099,2]
[345068906,1733974247076,-733.51085355,0.00011099,2]
[345068907,1733974247086,-643.83,0.00011099,2]
[345068908,1733974247095,-643.83,0.00011099,2]
[345068909,1733974247105,-643.83,0.00011099,2]
[345068910,1733974247115,-500.0,0.00011099,2]
[345068911,1733974247124,-495.5386896,0.00011099,2]
[345068912,1733974247137,-643.83,0.00011099,2]
[345068913,1733974247148,-643.83,0.00011099,2]
[345068914,1733974247159,-643.83,0.00011099,2]
[345068915,1733974247168,-643.83,0.00011099,2]
[345068916,1733974247178,-643.83,0.00011099,2]
[345068917,1733974247187,-643.83,0.00011099,2]
[345068918,1733974247197,-643.83,0.00011099,2]
[345068919,1733974247206,-643.83,0.00011099,2]
[345068920,1733974247217,-643.83,0.00011099,2]
[345068921,1733974247226,-643.83,0.00011099,2]
[345068922,1733974247235,-500.0,0.00011099,2]
[345068923,1733974247245,-643.83,0.00011099,2]
[345068924,1733974247255,-500.0,0.00011099,2]
[345068925,1733974247265,-643.83,0.00011099,2]
[345068926,1733974247274,-500.0,0.00011099,2]
[345068927,1733974247283,-643.83,0.00011099,2]
[345068928,1733974247293,-500.0,0.00011099,2]
[345068929,1733974247303,-643.83,0.00011099,2]
[345068930,1733974247312,-500.0,0.00011099,2]
[345068931,1733974247322,-643.83,0.00011099,2]
[345068932,1733974247331,-500.0,0.00011099,2]
[345068933,1733974247341,-643.9608271,0.00011099,2]
[345068934,1733974247351,-500.0,0.00011099,2]
[345068935,1733974247361,-500.0,0.00011099,2]
[345068936,1733974247370,-500.0,0.00011099,2]
[345068937,1733974247379,-500.0,0.00011099,2]
[345068938,1733974247397,-500.0,0.00011099,2]
[345068939,1733974247407,-509.99397475,0.00011099,2]
[345068940,1733974247416,-500.0,0.00011099,2]
[345068941,1733974247426,-500.0,0.00011099,2]
[345068942,1733974247436,-500.0,0.00011099,2]
[345068943,1733974247446,-500.0,0.00011099,2]
[345068944,1733974247455,-500.0,0.00011099,2]
[345068945,1733974247465,-500.0,0.00011099,2]
[345068946,1733974247474,-500.0,0.00011099,2]
[345068947,1733974247483,-500.0,0.00011099,2]
[345068948,1733974247493,-500.0,0.00011099,2]
[345068949,1733974247503,-500.0,0.00011099,2]
[345068950,1733974247513,-500.0,0.00011099,2]
[345068951,1733974247522,-620.1,0.00011099,2]
[345068952,1733974247531,-3095.9,0.00011099,2]
[345068953,1733974247541,-3095.9,0.00011099,2]
[345068954,1733974247551,-3095.9,0.00011099,2]
[345068955,1733974247560,-3095.9,0.00011099,2]
[345068956,1733974247569,-3095.9,0.00011099,2]
[345068957,1733974247579,-3095.9,0.00011099,2]
[345068958,1733974247588,-500.0,0.00011099,2]
[345068959,1733974247598,-3095.9,0.00011099,2]
[345068960,1733974247607,-538.41422526,0.00011099,2]
[345068961,1733974247616,-3095.9,0.00011099,2]
[345068962,1733974247626,-3095.9,0.00011099,2]
[345068963,1733974247641,-3095.9,0.00011099,2]
[345068964,1733974247651,-3095.9,0.00011099,2]
[345068965,1733974247660,-3095.9,0.00011099,2]
[345068966,1733974247670,-3095.9,0.00011099,2]
[345068967,1733974247680,-3095.9,0.00011099,2]
[345068968,1733974247690,-3095.9,0.00011099,2]
[345068969,1733974247700,-3095.9,0.00011099,2]
[345068970,1733974247709,-500.0,0.00011099,2]
[345068971,1733974247718,-3095.9,0.00011099,2]
[345068972,1733974247728,-500.0,0.00011099,2]
[345068973,1733974247738,-3095.9,0.00011099,2]
[345068974,1733974247748,-500.0,0.00011099,2]
[345068975,1733974247758,-3095.9,0.00011099,2]
[345068976,1733974247768,-500.0,0.00011099,2]
[345068977,1733974247778,-3095.9,0.00011099,2]
[345068978,1733974247788,-500.0,0.00011099,2]
[345068979,1733974247798,-4408.34,0.00011099,2]
[345068980,1733974247808,-3095.9,0.00011099,2]
[345068981,1733974247818,-500.0,0.00011099,2]
[345068982,1733974247827,-4408.34,0.00011099,2]
[345068983,1733974247837,-500.0,0.00011099,2]
[345068984,1733974247847,-4408.34,0.00011099,2]
[345068985,1733974247856,-3095.9,0.00011099,2]
[345068986,1733974247865,-500.0,0.00011099,2]
[345068987,1733974247875,-4408.34,0.00011099,2]
[345068988,1733974247887,-3096.12,0.00011099,2]
[345068989,1733974247898,-500.0,0.00011099,2]
[345068990,1733974247908,-4408.34,0.00011099,2]
[345068991,1733974247918,-4408.34,0.00011099,2]
[345068992,1733974247929,-500.0,0.00011099,2]
[345068993,1733974247939,-500.0,0.00011099,2]
[345068994,1733974247950,-4408.34,0.00011099,2]
[345068995,1733974247961,-4408.34,0.00011099,2]
[345068996,1733974247971,-500.0,0.00011099,2]
[345068997,1733974247986,-500.0,0.00011099,2]
[345068998,1733974247997,-4408.34,0.00011099,2]
[345068999,1733974248008,-500.0,0.00011099,2]
[345069000,1733974248018,-4408.34,0.00011099,2]
[345069001,1733974248031,-500.0,0.00011099,2]
[345069002,1733974248041,-4408.34,0.00011099,2]
[345069003,1733974248052,-500.0,0.00011099,2]
[345069004,1733974248064,-4408.34,0.00011099,2]
[345069005,1733974248075,-500.0,0.00011099,2]
[345069006,1733974248086,-4408.34,0.00011099,2]
[345069007,1733974248096,-500.0,0.00011099,2]
[345069008,1733974248106,-500.0,0.00011099,2]
[345069009,1733974248116,-4408.34,0.00011099,2]
[345069010,1733974248126,-283.18676042,0.00011099,2]
[345069011,1733974248142,-500.0,0.00011099,2]
[345069012,1733974248153,-4408.34,0.00011099,2]
[345069013,1733974248163,-500.0,0.00011099,2]
[345069014,1733974248174,-4408.34,0.00011099,2]
[345069015,1733974248184,-500.0,0.00011099,2]
[345069016,1733974248193,-500.0,0.00011099,2]
[345069017,1733974248203,-4408.34,0.00011099,2]
[345069018,1733974248213,-4408.34,0.00011099,2]
[345069019,1733974248222,-534.342136,0.00011099,2]
[345069020,1733974248232,-4408.34,0.00011099,2]
[345069021,1733974248242,-500.0,0.00011099,2]
[345069022,1733974248251,-4408.34,0.00011099,2]
[345069023,1733974248261,-500.0,0.00011099,2]
[345069024,1733974248271,-4408.34,0.00011099,2]
[345069025,1733974248281,-500.0,0.00011099,2]
[345069026,1733974248291,-4408.34,0.00011099,2]
[345069027,1733974248300,-500.0,0.00011099,2]
[345069028,1733974248310,-4408.36,0.00011099,2]
[345069029,1733974248320,-236.79,0.00011099,2]
[345069030,1733974248330,-329.08167801,0.00011099,2]
[345069031,1733974248340,-453.93433173,0.00011099,2]
[345069032,1733974248350,-500.0,0.00011099,2]
[345069033,1733974248360,-500.0,0.00011099,2]
[345069034,1733974248369,-500.0,0.00011099,2]
[345069035,1733974248379,-500.0,0.00011099,2]
[345069036,1733974248392,-500.0,0.00011099,2]
[345069037,1733974248402,-500.0,0.00011099,2]
[345069038,1733974248411,-500.0,0.00011099,2]
[345069039,1733974248421,-500.0,0.00011099,2]
[345069040,1733974248430,-500.0,0.00011099,2]
[345069041,1733974248440,-500.0,0.00011099,2]
[345069042,1733974248450,-500.0,0.00011099,2]
[345069043,1733974248460,-500.0,0.00011099,2]
[345069044,1733974248470,-500.0,0.00011099,2]
[345069045,1733974248480,-500.0,0.00011099,2]
[345069046,1733974248490,-378.58829533,0.00011099,2]
[345069047,1733974248500,-940.1,0.00011099,2]
[345069048,1733974248510,-940.1,0.00011099,2]
[345069049,1733974248519,-940.1,0.00011099,2]
[345069050,1733974248528,-940.1,0.00011099,2]
[345069051,1733974248538,-940.1,0.00011099,2]
[345069052,1733974248548,-940.1,0.00011099,2]
[345069053,1733974248558,-940.1,0.00011099,2]
[345069054,1733974248567,-940.1,0.00011099,2]
[345069055,1733974248576,-940.1,0.00011099,2]
[345069056,1733974248586,-940.1,0.00011099,2]
[345069057,1733974248596,-940.1,0.00011099,2]
[345069058,1733974248606,-940.1,0.00011099,2]
[345069059,1733974248615,-940.1,0.00011099,2]
[345069060,1733974248625,-940.1,0.00011099,2]
[345069061,1733974248637,-940.1,0.00011099,2]
[345069062,1733974248647,-940.1,0.00011099,2]
[345069063,1733974248657,-940.1,0.00011099,2]
[345069064,1733974248668,-940.1,0.00011099,2]
[345069065,1733974248679,-940.1,0.00011099,2]
[345069066,1733974248690,-940.1,0.00011099,2]
[345069067,1733974248700,-940.1,0.00011099,2]
[345069068,1733974248710,-940.1,0.00011099,2]
[345069069,1733974248719,-940.12912835,0.00011099,2]
[345069070,1733974248729,-456.11164259,0.00011099,2]
[345069071,1733974248739,-500.0,0.00011099,2]
[345069072,1733974248748,-500.0,0.00011099,2]
[345069073,1733974248758,-500.0,0.00011099,2]
[345069074,1733974248768,-500.0,0.00011099,2]
[345069075,1733974248777,-500.0,0.00011099,2]
[345069076,1733974248787,-541.27731089,0.00011099,2]
[345069077,1733974248797,-500.0,0.00011099,2]
[345069078,1733974248807,-500.0,0.00011099,2]
[345069079,1733974248817,-500.0,0.00011099,2]
[345069080,1733974248827,-500.0,0.00011099,2]
[345069081,1733974248837,-301.83059571,0.00011099,2]
[345069082,1733974248847,-500.0,0.00011099,2]
[345069083,1733974248857,-500.0,0.00011099,2]
[345069084,1733974248868,-500.0,0.00011099,2]
[345069085,1733974248878,-500.0,0.00011099,2]
[345069086,1733974248892,-500.0,0.00011099,2]
[345069087,1733974248905,-500.0,0.00011099,2]
[345069088,1733974248915,-500.0,0.00011099,2]
[345069089,1733974248924,-500.0,0.00011099,2]
[345069090,1733974248934,-500.0,0.00011099,2]
[345069091,1733974248943,-500.0,0.00011099,2]
[345069092,1733974248952,-500.0,0.00011099,2]
[345069093,1733974248962,-500.0,0.00011099,2]
[345069094,1733974248971,-500.0,0.00011099,2]
[345069095,1733974248982,-500.0,0.00011099,2]
[345069096,1733974249000,-500.0,0.00011099,2]
[345069097,1733974249018,-500.0,0.00011099,2]
[345069098,1733974249028,-500.0,0.00011099,2]
[345069099,1733974249038,-500.0,0.00011099,2]
[345069100,1733974249047,-500.0,0.00011099,2]
[345069101,1733974249057,-521.71565006,0.00011099,2]
[345069102,1733974249067,-226.08038498,0.00011099,2]
[345069103,1733974249076,-500.0,0.00011099,2]
[345069104,1733974249086,-500.0,0.00011099,2]
[345069105,1733974249095,-500.0,0.00011099,2]
[345069106,1733974249105,-500.0,0.00011099,2]
[345069107,1733974249115,-677.2,0.00011099,2]
[345069108,1733974249124,-500.0,0.00011099,2]
[345069109,1733974249136,-677.2,0.00011099,2]
[345069110,1733974249146,-500.0,0.00011099,2]
[345069111,1733974249156,-677.2,0.00011099,2]
[345069112,1733974249167,-500.0,0.00011099,2]
[345069113,1733974249176,-677.2,0.00011099,2]
[345069114,1733974249186,-500.0,0.00011099,2]
[345069115,1733974249196,-677.2,0.00011099,2]
[345069116,1733974249205,-500.0,0.00011099,2]
[345069117,1733974249215,-617.51287772,0.00011099,2]
[345069118,1733974249225,-677.2,0.00011099,2]
[345069119,1733974249234,-677.2,0.00011099,2]
[345069120,1733974249244,-677.2,0.00011099,2]
[345069121,1733974249253,-677.2,0.00011099,2]
[345069122,1733974249262,-677.2,0.00011099,2]
[345069123,1733974249271,-677.2,0.00011099,2]
[345069124,1733974249281,-677.2,0.00011099,2]
[345069125,1733974249290,-677.2,0.00011099,2]
[345069126,1733974249299,-677.2,0.00011099,2]
[345069127,1733974249308,-677.2,0.00011099,2]
[345069128,1733974249318,-677.2,0.00011099,2]
[345069129,1733974249327,-677.2,0.00011099,2]
[345069130,1733974249337,-677.2,0.00011099,2]
[345069131,1733974249346,-677.2,0.00011099,2]
[345069132,1733974249356,-677.2,0.00011099,2]
[345069133,1733974249366,-500.0,0.00011099,2]
[345069134,1733974249375,-401.73397565,0.00011099,2]
[345069135,1733974249386,-677.2,0.00011099,2]
[345069136,1733974249395,-677.2,0.00011099,2]
[345069137,1733974249405,-677.31485484,0.00011099,2]
[345069138,1733974249414,-500.0,0.00011099,2]
[345069139,1733974249424,-500.0,0.00011099,2]
[345069140,1733974249434,-500.0,0.00011099,2]
[345069141,1733974249443,-500.0,0.00011099,2]
[345069142,1733974249452,-502.2414434,0.00011099,2]
[345069143,1733974249462,-500.0,0.00011099,2]
[345069144,1733974249471,-604.23364175,0.00011099,2]
[345069145,1733974249481,-480.86844515,0.00011099,2]
[345069146,1733974249490,-501.99427467,0.00011099,2]
[345069147,1733974249500,-508.60073731,0.00011099,2]
[345069148,1733974249509,-443.75708415,0.00011099,2]
[345069149,1733974249518,-502.85753231,0.00011099,2]
[345069150,1733974249528,-500.0,0.00011099,2]
[345069151,1733974249537,-500.0,0.00011099,2]
[345069152,1733974249546,-501.25004548,0.00011099,2]
[345069153,1733974249557,-500.0,0.00011099,2]
[345069154,1733974249568,-500.0,0.00011099,2]
[345069155,1733974249577,-501.99826077,0.00011099,2]
[345069156,1733974249587,-506.67245075,0.00011099,2]
[345069157,1733974249596,-500.0,0.00011099,2]
[345069158,1733974249606,-500.0,0.00011099,2]
[345069159,1733974249616,-425.63224813,0.00011099,2]
[345069160,1733974249625,-503.23834425,0.00011099,2]
[345069161,1733974249638,-502.23965395,0.00011099,2]
[345069162,1733974249647,-749.39,0.00011099,2]
[345069163,1733974249657,-749.39,0.00011099,2]
[345069164,1733974249667,-749.39,0.00011099,2]
[345069165,1733974249676,-749.39,0.00011099,2]
[345069166,1733974249686,-749.39,0.00011099,2]
[345069167,1733974249696,-749.39,0.00011099,2]
[345069168,1733974249705,-316.35223085,0.00011099,2]
[345069169,1733974249715,-749.39,0.00011099,2]
[345069170,1733974249724,-749.39,0.00011099,2]
[345069171,1733974249733,-749.39,0.00011099,2]
[345069172,1733974249743,-749.39,0.00011099,2]
[345069173,1733974249752,-749.39,0.00011099,2]
[345069174,1733974249761,-749.39,0.00011099,2]
[345069175,1733974249770,-749.39,0.00011099,2]
[345069176,1733974249779,-749.39,0.00011099,2]
[345069177,1733974249789,-505.75367434,0.00011099,2]
[345069178,1733974249798,-749.39,0.00011099,2]
[345069179,1733974249807,-749.39,0.00011099,2]
[345069180,1733974249817,-749.39,0.00011099,2]
[345069181,1733974249826,-749.39,0.00011099,2]
[345069182,1733974249836,-749.39,0.00011099,2]
[345069183,1733974249846,-749.39,0.00011099,2]
[345069184,1733974249856,-749.39,0.00011099,2]
[345069185,1733974249866,-749.39,0.00011099,2]
[345069186,1733974249875,-749.44428537,0.00011099,2]
[345069187,1733974249886,-505.3822666,0.00011099,2]
[345069188,1733974249897,-507.03179363,0.00011099,2]
[345069189,1733974249907,-500.0,0.00011099,2]
[345069190,1733974249917,-500.0,0.00011099,2]
[345069191,1733974249927,-500.0,0.00011099,2]
[345069192,1733974249937,-500.0,0.00011099,2]
[345069193,1733974249947,-500.0,0.00011099,2]
[345069194,1733974249958,-500.0,0.00011099,2]
[345069195,1733974249968,-500.0,0.00011099,2]
[345069196,1733974249978,-500.0,0.00011099,2]
[345069197,1733974249989,-500.0,0.00011099,2]
[345069198,1733974250001,-500.0,0.00011099,2]
[345069199,1733974250011,-500.0,0.00011099,2]
[345069200,1733974250021,-500.0,0.00011099,2]
[345069201,1733974250031,-500.0,0.00011099,2]
[345069202,1733974250042,-464.57995675,0.00011099,2]
[345069203,1733974250052,-500.0,0.00011099,2]
[345069204,1733974250062,-574.84213681,0.00011099,2]
[345069205,1733974250072,-500.0,0.00011099,2]
[345069206,1733974250083,-500.0,0.00011099,2]
[345069207,1733974250096,-500.0,0.00011099,2]
[345069208,1733974250106,-500.0,0.00011099,2]
[345069209,1733974250116,-500.0,0.00011099,2]
[345069210,1733974250126,-500.0,0.00011099,2]
[345069211,1733974250138,-500.0,0.00011099,2]
[345069212,1733974250148,-501.47352517,0.00011099,2]
[345069213,1733974250158,-500.0,0.00011099,2]
[345069214,1733974250167,-500.0,0.00011099,2]
[345069215,1733974250177,-500.0,0.00011099,2]
[345069216,1733974250186,-500.0,0.00011099,2]
[345069217,1733974250196,-500.0,0.00011099,2]
[345069218,1733974250206,-500.0,0.00011099,2]
[345069219,1733974250215,-500.0,0.00011099,2]
[345069220,1733974250225,-500.0,0.00011099,2]
[345069221,1733974250235,-500.0,0.00011099,2]
[345069222,1733974250245,-500.0,0.00011099,2]
[345069223,1733974250255,-500.0,0.00011099,2]
[345069224,1733974250265,-500.0,0.00011099,2]
[345069225,1733974250275,-597.4,0.00011099,2]
[345069226,1733974250285,-500.0,0.00011099,2]
[345069227,1733974250294,-500.0,0.00011099,2]
[345069228,1733974250304,-500.0,0.00011099,2]
[345069229,1733974250313,-617.11617379,0.00011099,2]
[345069230,1733974250323,-500.0,0.00011099,2]
[345069231,1733974250332,-500.0,0.00011099,2]
[345069232,1733974250342,-500.0,0.00011099,2]
[345069233,1733974250351,-500.0,0.00011099,2]
[345069234,1733974250361,-500.0,0.00011099,2]
[345069235,1733974250371,-500.0,0.00011099,2]
[345069236,1733974250380,-500.0,0.00011099,2]
[345069237,1733974250393,-500.0,0.00011099,2]
[345069238,1733974250402,-500.0,0.00011099,2]
[345069239,1733974250411,-500.0,0.00011099,2]
[345069240,1733974250420,-500.0,0.00011099,2]
[345069241,1733974250429,-500.0,0.00011099,2]
[345069242,1733974250438,-609.42,0.00011099,2]
[345069243,1733974250448,-500.0,0.00011099,2]
[345069244,1733974250458,-500.0,0.00011099,2]
[345069245,1733974250467,-389.46,0.00011099,2]
[345069246,1733974250476,-500.0,0.00011099,2]
[345069247,1733974250485,-500.0,0.00011099,2]
[345069248,1733974250494,-500.0,0.00011099,2]
[345069249,1733974250503,-649.24405128,0.00011099,2]
[345069250,1733974250513,-500.0,0.00011099,2]
[345069251,1733974250523,-500.0,0.00011099,2]
[345069252,1733974250532,-500.0,0.00011099,2]
[345069253,1733974250542,-686.0,0.000111,2]
[345069254,1733974250552,-84744.66006202,0.000111,2]
[345069255,1733974250562,-2163.55444087,0.000111,2]
[345069256,1733974250571,-804.019,0.000111,2]
[345069257,1733974250580,-1510.842,0.000111,2]
[345069258,1733974250590,-634.0,0.000111,2]
[345069259,1733974250599,-3879.0,0.000111,2]
[345069260,1733974250609,-466998.35389465,0.000111,2]
[345069261,1733974251258,-341.99695855,0.00011099,2]
[345069262,1733974251270,-158.00304145,0.00011099,2]
[345069263,1733974251279,-314.46549994,0.00011099,2]
[345069264,1733974251292,-185.53450006,0.00011099,2]
[345069265,1733974251302,-251.51897709,0.00011099,2]
[345069266,1733974251311,-500.0,0.00011099,2]
[345069267,1733974251320,-62.94652285,0.00011099,2]
[345069268,1733974251332,-579.25347715,0.00011099,2]
[345069269,1733974251342,-3301.38528284,0.000111,2]
[345069270,1733974251354,-250.36498998,0.000111,2]
[345069271,1733974251365,-9931.4926245,0.000111,2]
[345069272,1733974251377,-10127.0,0.000111,2]
[345069273,1733974251842,-89.03641001,0.000111,2]
[345069274,1733974251853,-238459.91654017,0.000111,2]
[345069275,1733974251874,-8685.68426978,0.00010988,2]
[345069283,1733974394609,174.53,8.032e-05,2]
[345069288,1733975011457,168.25,7.727e-05,2]
[345069289,1733975102562,1091.37,8.219e-05,2]
[345069290,1733975377023,1000.0,9.374e-05,2]
[345069291,1733975410427,500.0,9.6e-05,4]
[345069292,1733975432435,-4997.39184474,9.661e-05,2]
[345069294,1733975432445,-200.0,9.661e-05,2]
[345069295,1733975432455,-206.71731505,9.661e-05,2]
[345069296,1733975432465,-751.17,9.678e-05,2]
[345069297,1733975432475,-250.0,9.71e-05,2]
[345069299,1733975432484,-150.0,9.753e-05,2]
[345069301,1733975432494,-300.0,9.757e-05,2]
[345069302,1733975432503,-466.25710608,9.758e-05,2]
[345069303,1733975432513,-9714.0,9.758e-05,2]
[345069304,1733975432522,-4855.0,9.758e-05,2]
[345069305,1733975432533,-4855.0,9.758e-05,2]
[345069306,1733975432544,-4855.0,9.758e-05,2]
[345069307,1733975432554,-4855.0,9.758e-05,2]
[345069308,1733975432564,-250.0,9.768e-05,2]
[345069309,1733975432573,-262.21,9.768e-05,2]
[345069310,1733975432583,-328.27,9.784e-05,2]
[345069311,1733975432592,-250.0,9.804e-05,2]
[345069312,1733975432601,-7621.68,9.826e-05,2]
[345069313,1733975432611,-466.25710606,9.884e-05,2]
[345069314,1733975432620,-180.05,9.926e-05,2]
[345069315,1733975432630,-167.34,9.951e-05,2]
[345069316,1733975432640,-500.0,9.972e-05,2]
[345069317,1733975432649,-1100.0,9.972e-05,2]
[345069318,1733975432659,-615.84,0.0001,2]
[345069319,1733975432668,-1089.78176655,0.00010008,2]
[345069320,1733975432678,-1012.0385086,0.00010008,2]
[345069321,1733975432687,-150.0,0.00010008,2]
[345069322,1733975432696,-39096.53473475,0.00010009,2]
[345069323,1733975432706,-981.42,0.00010009,2]
[345069324,1733975432715,-1017.42,0.00010034,2]
[345069325,1733975432724,-676.2,0.00010108,2]
[345069326,1733975432734,-155.63,0.00010137,2]
[345069327,1733975432743,-1017.24,0.00010169,2]
[345069328,1733975432753,-999.45,0.0001021,2]
[345069329,1733975432762,-981.55,0.00010237,2]
[345069330,1733975432996,-180.05,0.00010293,2]
[345069331,1733975433006,-1007.53,0.00010324,2]
[345069332,1733975433015,-501.0,0.00010384,2]
[345069333,1733975433025,-1091.37,0.00010458,2]
[345069334,1733975433042,-1008.95,0.00010469,2]
[345069335,1733975433052,-167.012,0.00010489,2]
[345069336,1733975433062,-1000.0,0.00010546,2]
[345069337,1733975433072,-150.0,0.00010548,2]
[345069338,1733975433083,-1950.12,0.00010548,2]
[345069340,1733975433093,-995.27,0.00010615,2]
[345069342,1733975433104,-1002.58,0.00010615,2]
[345069344,1733975433113,-998.87,0.00010615,2]
[345069346,1733975433123,-151.079463,0.00010656,2]
[345069347,1733975433133,-180.05,0.00010661,2]
[345069348,1733975433143,-153.0,0.00010715,2]
[345069349,1733975433153,-1156.0,0.00010721,2]
[345069351,1733975433163,-1154.0,0.00010721,2]
[345069353,1733975433172,-1154.0,0.00010721,2]
[345069355,1733975433182,-1154.0,0.00010721,2]
[345069356,1733975433192,-1458.0,0.00010769,2]
[345069358,1733975433203,-500.0,0.000108,2]
[345069360,1733975433213,-512.2915,0.000108,2]
[345069362,1733975433223,-5362.9118,0.000108,2]
[345069363,1733975433232,-13533.83383838,0.000108,2]
[345069364,1733975433245,-1103.55713475,0.000108,2]
[345069368,1733975433310,-14294.83492687,0.000108,2]
[345069370,1733975433320,-545.0501,0.00010858,2]
[345069373,1733975433334,-500.0,0.00010873,2]
[345069375,1733975433344,-1016.39,0.00010887,2]
[345069377,1733975433354,-751.17,0.00010888,2]
[345069378,1733975433365,-742.00746376,0.00010899,2]
[345069379,1733975433375,-500.0,0.00010899,2]
[345069380,1733975433386,-500.0,0.00010899,2]
[345069381,1733975433396,-500.0,0.00010899,2]
[345069382,1733975433408,-492.41953706,0.00010899,2]
[345069383,1733975433418,-500.0,0.00010899,2]
[345069384,1733975433428,-500.0,0.00010899,2]
[345069385,1733975433438,-386.37482274,0.00010899,2]
[345069386,1733975433448,-500.0,0.00010899,2]
[345069387,1733975433458,-500.0,0.00010899,2]
[345069388,1733975433469,-500.0,0.00010899,2]
[345069389,1733975433479,-500.0,0.00010899,2]
[345069390,1733975433489,-22176.72410466,0.000109,2]
[345069391,1733975433500,-280.45036158,0.000109,2]
[345069392,1733975433512,-46496.7156803,0.000109,2]
[345069393,1733975433523,-47111.09219561,0.000109,2]
[345069394,1733975433538,-180234.86561659,0.000109,2]
[345069395,1733975433549,-89426.92385113,0.000109,2]
[345069396,1733975433561,-56729.99924218,0.000109,2]
[345069397,1733975433572,-1000.398,0.000109,2]
[345069398,1733975433584,-13651.88333297,0.000109,2]
[345069399,1733975433594,-5349.58733395,0.000109,2]
[345069400,1733975433604,-996.53,0.000109,2]
[345069401,1733975433614,-989.99,0.000109,2]
[345069402,1733975433624,-24905.79008387,0.000109,2]
[345069409,1733975438471,-466.25710606,9.909e-05,2]
[345069410,1733975438482,-1801.12402622,0.000109,2]
[345069411,1733975438493,-7831.95004079,0.000109,2]
[345069412,1733975438504,-9261.52160548,0.000109,2]
[345069413,1733975438515,-2067.21978566,0.000109,2]
[345069414,1733975438526,-33842.11132507,0.000109,2]
[345069416,1733975438540,-509.16789362,0.000109,2]
[345069417,1733975438551,-4455.4899702,0.000109,2]
[345069418,1733975438562,-3591.27347008,0.000109,2]
[345069419,1733975438797,-21451.59859496,0.000109,2]
[345069420,1733975438808,-12822.579236,0.000109,2]
[345069421,1733975438819,-1858.71887438,0.000109,2]
[345069422,1733975438830,-22825.70613786,0.000109,2]
[345069423,1733975438842,-1008.99095271,0.000109,2]
[345069425,1733975440385,-40322.30338783,0.000109,2]
[345069427,1733975440394,-165.63595329,0.000109,2]
[345069428,1733975440404,-165.63595324,0.000109,2]
[345069430,1733975440413,-165.63595324,0.000109,2]
[345069432,1733975440423,-165.63595324,0.000109,2]
[345069433,1733975440432,-165.63595324,0.000109,2]
[345069435,1733975440441,-165.63595324,0.00010925,2]
[345069437,1733975440451,-344.41239926,0.00010934,2]
[345069439,1733975440460,-165.63595324,0.0001095,2]
[345069441,1733975440469,-519.5,0.00010958,2]
[345069442,1733975440479,-500.0,0.00010958,2]
[345069443,1733975440488,-504.22496165,0.00010958,2]
[345069444,1733975440497,-500.0,0.00010958,2]
[345069445,1733975440507,-500.0,0.00010958,2]